bitfinex/quotes_ETHUSD_20210701
["timestamp","ask_amount","ask_price","bid_price","bid_amount"]
[1625172381574,11.94277494,2118.3,2117.2,0.07356638]
[1625172381680,11.80382,2118.3,2117.2,0.07356638]
[1625172382036,11.80382,2118.3,2117.2,2.60875486]
[1625172382188,15.34386,2118.3,2117.3,0.04]
[1625172382286,15.34386,2118.3,2117.3,3.5796557]
[1625172382386,15.34386,2118.3,2117.4,0.68830201]
[1625172382490,7.07924,2118.0,2117.4,13.45579201]
[1625172382691,7.07924,2118.0,2117.4,18.46579201]
[1625172382892,7.07924,2118.0,2117.5,0.1]
[1625172382989,7.07924,2118.0,2117.5,6.41017225]
[1625172383092,7.07924,2118.0,2117.5,11.42017225]
[1625172383190,7.07924,2118.0,2117.5,11.8894447]
[1625172383792,7.07856,2118.2,2117.6,0.06]
[1625172384072,7.07856,2118.2,2117.6,0.56340511]
[1625172384418,11.80382,2118.3,2117.7,30.1]
[1625172384571,11.80382,2118.3,2117.8,0.47290708]
[1625172384670,0.94075881,2118.3,2117.8,0.47290708]
[1625172384771,0.94075881,2118.3,2117.8,0.67290708]
[1625172384868,0.94075881,2118.3,2117.9,0.2]
[1625172384969,0.94075881,2118.3,2117.9,3.4129]
[1625172385071,7.07789,2118.4,2117.9,11.36585236]
[1625172385319,2.81660921,2119.1,2118.0,30.1]
[1625172385475,2.81660921,2119.1,2118.1,0.10611561]
[1625172385476,0.41660921,2119.1,2118.1,0.10611561]
[1625172385575,0.36660921,2119.1,2118.1,0.30611561]
[1625172385669,6.87,2119.3,2118.1,0.30611561]
[1625172385769,6.87,2119.3,2118.3,0.10269994]
[1625172385873,11.79633,2119.4,2118.3,0.10269994]
[1625172386422,7.07586,2119.1,2118.3,7.17855994]
[1625172386569,7.07586,2119.1,2118.3,12.08586]
[1625172386788,7.02586,2119.1,2118.4,0.04]
[1625172386986,7.02586,2119.1,2118.4,3.3964]
[1625172387095,7.02586,2119.1,2118.4,8.4064]
[1625172387189,5.01,2119.6,2118.4,3.3964]
[1625172387339,5.01,2119.6,2118.5,0.08]
[1625172387438,23.6762,2119.7,2118.4,3.3564]
[1625172387595,23.6762,2119.7,2118.4,8.3664]
[1625172387688,23.6762,2119.7,2118.4,3.3564]
[1625172387787,25.92640764,2119.7,2118.4,8.3664]
[1625172387939,15.26020764,2119.7,2118.4,8.3664]
[1625172388138,10.79813764,2119.7,2118.4,8.3664]
[1625172388239,11.7546926,2119.7,2118.4,8.3664]
[1625172388340,19.7546926,2119.7,2118.4,8.3664]
[1625172388439,7.07586,2119.1,2118.4,8.3664]
[1625172388569,8.02371968,2119.1,2118.4,8.3664]
[1625172388771,8.02371968,2119.1,2118.5,0.12]
[1625172389319,8.02371968,2119.1,2118.4,3.3564]
[1625172389519,8.02371968,2119.1,2118.4,8.3664]
[1625172389721,7.07586,2119.1,2118.4,8.3664]
[1625172390804,8.0209782,2119.1,2118.4,8.3664]
[1625172393164,7.07586,2119.1,2118.4,8.3664]
[1625172393365,12.08586,2119.1,2118.4,3.3564]
[1625172393467,12.08586,2119.1,2118.3,1.145]
[1625172393565,12.08586,2119.1,2118.2,6.30781103]
[1625172393867,7.07586,2119.1,2118.2,6.30781103]
[1625172393964,7.07586,2119.1,2118.2,11.31781103]
[1625172394066,7.07586,2119.1,2118.3,0.1]
[1625172394216,12.08586,2119.1,2118.2,6.30781103]
[1625172394316,7.07586,2119.1,2118.2,6.30781103]
[1625172394416,12.08586,2119.1,2118.2,6.30781103]
[1625172395314,7.07586,2119.1,2118.2,11.31781103]
[1625172395464,7.07586,2119.1,2118.2,6.30781103]
[1625172395566,7.07586,2119.1,2118.2,11.31781103]
[1625172395663,7.07586,2119.1,2118.3,0.04]
[1625172398273,7.07586,2119.1,2118.3,10.6547853]
[1625172398424,8.54819,2119.6,2118.4,0.06]
[1625172398621,8.54819,2119.6,2118.4,0.11821344]
[1625172398771,8.54819,2119.6,2118.4,0.06821344]
[1625172398971,8.54819,2119.6,2118.4,0.05117156]
[1625172399631,8.54819,2119.6,2118.6,0.00615448]
[1625172400073,7.07594,2119.2,2118.6,0.00615448]
[1625172401025,12.08594,2119.2,2118.6,0.00615448]
[1625172402524,20.08594,2119.2,2118.6,0.00615448]
[1625172402678,3.53896,2119.1,2118.6,0.00615448]
[1625172402769,8.46376,2119.1,2118.6,0.00615448]
[1625172402874,30.1,2119.0,2118.1,0.0062182]
[1625172402973,0.01478469,2118.9,2118.1,0.0062182]
[1625172403121,43.1258785,2119.0,2118.1,0.0062182]
[1625172403271,0.0101649,2118.9,2118.1,0.0062182]
[1625172403622,7.07881,2118.5,2118.1,0.0062182]
[1625172403723,10.29591,2118.5,2118.1,0.0062182]
[1625172403877,16.239414,2118.5,2118.1,0.0062182]
[1625172404026,0.06,2118.4,2118.1,0.0062182]
[1625172404722,7.08026,2118.3,2118.1,0.0062182]
[1625172404967,12.09026,2118.3,2118.1,0.0062182]
[1625172405419,27.41,2118.2,2118.1,0.0062182]
[1625172405523,32.42,2118.2,2118.1,0.0062182]
[1625172405671,5.07,2118.2,2118.1,0.0062182]
[1625172405869,0.06,2118.2,2118.1,0.0062182]
[1625172405972,5.07,2118.2,2118.1,0.0062182]
[1625172406071,7.41,2118.2,2118.1,0.0062182]
[1625172406171,12.42,2118.2,2118.1,0.0062182]
[1625172406987,5.07,2118.2,2118.1,0.0062182]
[1625172407236,12.09026,2118.3,2118.1,0.0062182]
[1625172407336,7.08026,2118.3,2118.1,0.0062182]
[1625172407538,7.08026,2118.3,2118.1,8.2e-06]
[1625172407642,12.09026,2118.3,2118.1,8.2e-06]
[1625172407790,29.55614931,2118.3,2118.1,8.2e-06]
[1625172407946,0.23,2118.2,2118.1,8.2e-06]
[1625172408045,2.88775951,2118.2,2118.1,8.2e-06]
[1625172408190,17.88775951,2118.2,2118.1,8.2e-06]
[1625172408338,22.89775951,2118.2,2118.1,8.2e-06]
[1625172408439,28.96364882,2118.2,2118.1,8.2e-06]
[1625172408822,29.90879538,2118.2,2118.1,8.2e-06]
[1625172408887,1.1915,2118.1,2117.6,0.00630441]
[1625172408979,15.0,2118.0,2117.6,0.00630441]
[1625172409134,7.08458,2117.8,2117.6,0.00630441]
[1625172409233,45.1,2117.7,2117.6,0.00630441]
[1625172409329,45.25,2117.7,2117.6,0.00630441]
[1625172409431,58.26,2117.7,2117.6,4.41e-06]
[1625172409532,58.34,2117.7,2117.6,4.41e-06]
[1625172409629,63.46364882,2117.7,2117.6,4.41e-06]
[1625172410729,65.46364882,2117.7,2117.6,4.41e-06]
[1625172411126,67.46364882,2117.7,2117.6,4.41e-06]
[1625172411780,72.46364882,2117.7,2117.6,4.41e-06]
[1625172411882,30.1,2117.5,2116.1,0.20676765]
[1625172411981,35.13826802,2117.4,2116.1,0.20676765]
[1625172412082,3.8,2117.0,2116.1,6.765e-05]
[1625172412233,15.0681716,2116.9,2116.1,6.765e-05]
[1625172412329,0.01805099,2116.8,2116.1,6.765e-05]
[1625172412432,0.01108153,2116.7,2116.1,6.765e-05]
[1625172412547,7.08803,2116.4,2116.1,6.765e-05]
[1625172412681,11.61923,2116.4,2116.1,6.765e-05]
[1625172412789,16.62923,2116.4,2116.1,6.765e-05]
[1625172412937,0.08,2116.3,2116.1,6.765e-05]
[1625172413234,30.1,2116.2,2115.2,10.74798707]
[1625172413368,0.03844766,2116.1,2115.2,10.74798707]
[1625172413501,0.06343672,2116.1,2115.2,10.74798707]
[1625172413704,7.08763,2115.9,2115.2,10.74798707]
[1625172413803,7.08763,2115.9,2115.1,10.85213717]
[1625172413953,12.09763,2115.9,2115.1,10.85213717]
[1625172414053,7.09786676,2115.9,2115.1,10.85213717]
[1625172414155,6.0946,2115.9,2115.1,0.20733717]
[1625172414305,10.551,2115.9,2115.1,0.20733717]
[1625172414453,13.541,2115.9,2115.1,0.20733717]
[1625172414553,0.06,2115.8,2115.1,0.20733717]
[1625172414905,18.551,2115.9,2115.1,0.20733717]
[1625172415407,7.0885,2115.6,2115.1,0.20733717]
[1625172415577,12.0985,2115.6,2115.1,0.20733717]
[1625172417335,5.01,2115.6,2115.1,0.20733717]
[1625172417526,10.551,2115.9,2115.1,0.20733717]
[1625172417628,30.1,2115.8,2114.5,6.31488422]
[1625172417729,30.1,2115.8,2114.1,14.88751382]
[1625172417730,0.04970215,2115.7,2114.1,14.88751382]
[1625172417867,0.04970215,2115.7,2114.1,15.5532]
[1625172417868,0.00733717,2115.6,2114.1,15.5532]
[1625172417964,0.068941,2115.5,2114.2,10.9739]
[1625172418066,0.07968774,2115.5,2114.2,15.9839]
[1625172418214,0.068941,2115.5,2114.2,15.9839]
[1625172418468,11.03805,2115.0,2114.2,15.9839]
[1625172418816,8.23846635,2115.0,2114.2,5.01]
[1625172419013,8.23846635,2115.0,2114.1,15.5532]
[1625172420930,3.9473,2115.0,2114.1,15.5532]
[1625172421086,0.00733717,2115.6,2114.2,4.78408465]
[1625172421183,0.00733717,2115.6,2114.3,1.6693]
[1625172421283,0.00733717,2115.6,2114.3,1.86643543]
[1625172421382,0.00733717,2115.6,2114.3,2.44223256]
[1625172421535,0.00733717,2115.6,2115.0,7.08693]
[1625172421685,0.00733717,2115.6,2115.0,10.61563]
[1625172422232,0.00733717,2115.6,2115.0,3.5287]
[1625172422367,0.00733717,2115.6,2115.0,9.84294143]
[1625172423358,0.00733717,2115.6,2115.0,3.5287]
[1625172423458,0.00733717,2115.6,2114.2,21.0982]
[1625172423558,7.09115,2115.0,2114.3,9.9722]
[1625172423760,10.93965,2115.0,2114.3,9.9722]
[1625172424307,15.94965,2115.0,2114.3,9.9722]
[1625172433327,0.8936,2115.1,2114.3,14.2249]
[1625172433431,5.01,2115.3,2114.4,0.17307634]
[1625172433604,0.00733717,2115.6,2114.4,0.44307634]
[1625172433694,0.00733717,2115.6,2114.7,2.5]
[1625172433793,0.00733717,2115.6,2114.8,0.10271229]
[1625172433894,0.00733717,2115.6,2114.8,3.90601229]
[1625172434243,7.09584717,2115.6,2114.8,3.90601229]
[1625172434446,12.10584717,2115.6,2114.8,3.8033]
[1625172434697,7.09584717,2115.6,2114.8,3.8033]
[1625172435499,10.75124717,2115.6,2114.3,3.0]
[1625172435650,10.75124717,2115.6,2114.1,11.2356]
[1625172435651,0.08,2115.5,2114.1,11.2356]
[1625172435832,0.09023148,2115.5,2114.1,11.2356]
[1625172435890,2.47322648,2115.6,2114.1,11.2356]
[1625172435989,7.48322648,2115.6,2114.1,11.2356]
[1625172436089,2.48447143,2115.6,2114.1,11.2356]
[1625172436195,15.48322648,2115.6,2114.1,11.2356]
[1625172436292,2.47322648,2115.6,2114.1,11.2356]
[1625172436390,7.48322648,2115.6,2114.1,11.2356]
[1625172436744,2.47322648,2115.6,2114.1,11.2356]
[1625172436840,7.48322648,2115.6,2114.1,11.2356]
[1625172437140,3.54508,2115.5,2114.1,11.2356]
[1625172437242,7.15708,2115.5,2114.1,11.2356]
[1625172437344,7.09061,2114.9,2114.1,11.2356]
[1625172437544,12.10061,2114.9,2114.1,11.2356]
[1625172437645,15.09061,2114.9,2114.1,0.2]
[1625172437747,12.10061,2114.9,2114.1,0.2]
[1625172437845,20.10061,2114.9,2114.1,0.2]
[1625172437998,0.08,2114.8,2114.1,0.2]
[1625172438244,13.01,2114.9,2114.1,0.2]
[1625172438700,7.0931,2114.5,2114.1,0.2]
[1625172438893,12.1031,2114.5,2114.1,0.2]
[1625172441644,16.6988,2114.5,2114.1,0.2]
[1625172442866,24.6988,2114.5,2114.1,0.2]
[1625172443018,24.70939486,2114.5,2114.1,0.2]
[1625172443169,7.09323,2114.3,2114.1,0.2]
[1625172443419,12.10323,2114.3,2114.1,0.2]
[1625172443520,30.1,2114.2,2113.3,20.9949]
[1625172443623,0.04573483,2114.1,2113.3,20.9949]
[1625172443720,0.10471991,2114.1,2113.3,20.9949]
[1625172443820,0.08,2114.1,2113.3,20.9949]
[1625172443923,26.47406333,2114.2,2113.3,20.9949]
[1625172443924,13.01,2114.2,2113.3,20.9949]
[1625172444023,5.01,2114.2,2113.3,20.9949]
[1625172444269,17.15200205,2114.3,2113.3,20.9949]
[1625172444376,2.65580205,2114.3,2113.3,20.9949]
[1625172444471,0.01109209,2114.7,2113.4,0.51643426]
[1625172444572,11.82214,2115.0,2113.4,6.37213426]
[1625172444671,11.82214,2115.0,2113.4,5.9157]
[1625172444849,11.82214,2115.0,2113.5,0.62936944]
[1625172445050,11.82214,2115.0,2113.6,0.15]
[1625172445151,10.382,2115.2,2113.6,0.15]
[1625172445249,10.382,2115.2,2113.7,0.05763671]
[1625172445349,10.382,2115.2,2114.0,3.5453033]
[1625172445455,7.09054,2115.2,2114.3,7.09061]
[1625172445549,7.09054,2115.2,2114.2,2.168]
[1625172445749,7.09054,2115.2,2114.4,0.04]
[1625172445846,7.09054,2115.2,2114.2,2.168]
[1625172446966,12.10054,2115.2,2114.2,2.168]
[1625172447101,7.09054,2115.2,2114.2,1.359]
[1625172447191,12.10054,2115.2,2114.2,1.359]
[1625172447441,12.10054,2115.2,2114.2,8.44971]
[1625172447640,12.10054,2115.2,2114.2,9.44871]
[1625172450043,12.10054,2115.2,2114.2,8.08971]
[1625172450147,12.10054,2115.2,2114.2,7.09071]
[1625172450696,12.10054,2115.2,2114.0,6.31544333]
[1625172450697,5.01,2115.2,2114.0,6.31544333]
[1625172450897,7.09054,2115.2,2114.1,9.45415]
[1625172451048,12.10054,2115.2,2114.1,9.45415]
[1625172451298,12.10054,2115.2,2113.9,10.2428]
[1625172451299,15.44582978,2115.2,2113.9,10.2428]
[1625172451396,15.44582978,2115.2,2113.8,13.0609]
[1625172451397,0.08,2115.1,2113.8,10.3609]
[1625172451494,0.09587332,2115.1,2113.8,10.3609]
[1625172451640,0.06,2115.0,2113.8,10.3609]
[1625172451733,2.38842888,2115.0,2113.8,10.3609]
[1625172451836,3.54664,2114.7,2113.4,20.3338]
[1625172451990,7.09328,2114.2,2113.4,20.3338]
[1625172452235,12.10328,2114.2,2113.4,10.8779]
[1625172452383,7.09328,2114.2,2113.4,10.8779]
[1625172452484,12.10328,2114.2,2113.4,10.8779]
[1625172453039,24.33378,2114.2,2113.4,10.8779]
[1625172453186,7.09481,2113.8,2113.2,10.988]
[1625172453285,7.09481,2113.8,2113.1,0.2]
[1625172453384,12.10481,2113.8,2113.1,0.2]
[1625172453843,7.09481,2113.8,2113.1,0.2]
[1625172453942,9.45974,2113.9,2113.1,0.2]
[1625172454043,5.01,2114.1,2113.2,0.06]
[1625172454242,22.4679,2114.3,2113.1,0.2]
[1625172454342,7.09409,2113.8,2113.1,7.29364]
[1625172454544,12.10409,2113.8,2113.1,0.2]
[1625172454745,7.09409,2113.8,2113.1,0.2]
[1625172454846,12.10409,2113.8,2113.1,0.2]
[1625172454947,7.09409,2113.8,2113.1,0.2]
[1625172455046,12.10409,2113.8,2113.1,0.2]
[1625172455351,7.09409,2113.8,2113.1,0.2]
[1625172455751,7.09409,2113.8,2113.2,0.06]
[1625172455953,7.09409,2113.8,2113.1,0.2]
[1625172456313,9.45879,2114.0,2113.1,5.2028]
[1625172456515,5.01,2114.0,2113.2,0.04]
[1625172456764,5.01,2114.2,2113.1,10.2128]
[1625172457015,9.4579,2114.3,2113.1,11.62925867]
[1625172457016,14.4679,2114.3,2113.1,11.62925867]
[1625172457165,14.4679,2114.3,2113.1,15.17581477]
[1625172457265,14.4679,2114.3,2113.1,15.451325]
[1625172458447,7.0931,2114.1,2113.4,7.09282]
[1625172458543,12.1031,2114.1,2113.4,7.09282]
[1625172460152,12.1031,2114.1,2113.2,7.09326]
[1625172460252,12.1031,2114.1,2113.1,8.7565561]
[1625172460802,12.1031,2114.1,2113.2,0.14]
[1625172461252,12.1031,2114.1,2113.1,8.7565561]
[1625172461703,12.1031,2114.1,2113.1,5.21]
[1625172461855,0.01592966,2114.0,2113.1,0.2]
[1625172462120,13.01,2114.1,2113.1,0.2]
[1625172462272,5.01,2114.1,2113.1,0.2]
[1625172462570,7.09379,2114.0,2113.1,0.2]
[1625172462881,12.10379,2114.0,2113.1,0.2]
[1625172462882,12.10379,2114.0,2113.2,0.04]
[1625172462983,7.09379,2114.0,2113.2,0.04]
[1625172463133,9.3031192,2114.0,2113.2,0.04]
[1625172463234,4.2931192,2114.0,2113.1,0.2]
[1625172463335,9.3031192,2114.0,2113.1,0.2]
[1625172463484,17.3031192,2114.0,2113.1,0.2]
[1625172463582,9.3031192,2114.0,2113.1,0.2]
[1625172463685,9.3031192,2114.0,2113.1,0.15]
[1625172464687,17.3031192,2114.0,2113.1,0.15]
[1625172469015,4.2931192,2114.0,2113.1,0.15]
[1625172469114,11.0086,2114.7,2113.1,7.14544619]
[1625172469215,11.0086,2114.7,2113.2,3.75274624]
[1625172469315,11.0086,2114.7,2113.2,3.76006745]
[1625172469410,11.0086,2114.7,2113.3,0.08]
[1625172469625,11.0086,2114.7,2113.4,0.17550994]
[1625172469726,7.0922,2114.3,2113.5,0.82]
[1625172469826,9.45611,2114.6,2113.5,4.3660756]
[1625172470024,9.45611,2114.6,2113.5,9.3760756]
[1625172470224,14.46611,2114.6,2113.5,9.3760756]
[1625172470324,14.46611,2114.6,2113.5,12.9219056]
[1625172470425,22.46611,2114.6,2113.5,4.3660756]
[1625172470675,26.01235,2114.6,2113.5,0.82]
[1625172470829,26.01235,2114.6,2113.4,6.6112]
[1625172470926,7.09275,2114.1,2113.4,1.0126]
[1625172471029,7.09275,2114.1,2113.3,12.10307]
[1625172471133,7.09275,2114.1,2113.3,7.09307]
[1625172471327,12.10275,2114.1,2113.3,7.09307]
[1625172473888,12.10275,2114.1,2113.2,9.45686]
[1625172473990,12.10275,2114.1,2113.2,5.01]
[1625172474222,12.10275,2114.1,2113.1,26.8132]
[1625172474425,20.10275,2114.1,2113.1,26.8132]
[1625172474521,20.10275,2114.1,2113.1,21.8032]
[1625172474619,13.01,2114.1,2113.1,21.8032]
[1625172474772,3.54716,2113.9,2113.1,21.8032]
[1625172474970,8.55716,2113.9,2113.1,21.8032]
[1625172475071,13.60219338,2113.9,2113.1,10.8821]
[1625172475271,13.59206,2113.9,2113.1,10.8821]
[1625172475373,7.09484,2113.5,2113.1,10.7321]
[1625172475476,7.09484,2113.5,2113.1,0.15]
[1625172476122,9.45919,2113.7,2113.1,0.15]
[1625172476225,14.46919,2113.7,2113.1,0.15]
[1625172476372,14.46919,2113.7,2113.2,0.1]
[1625172476566,14.46919,2113.7,2113.1,0.15]
[1625172477098,5.01,2113.7,2113.1,7.24435]
[1625172477292,9.45932,2113.9,2113.1,7.24435]
[1625172477594,9.45755,2114.2,2113.1,7.24435]
[1625172477743,17.45755,2114.2,2113.1,7.24435]
[1625172477845,22.46755,2114.2,2113.1,7.24435]
[1625172478141,14.46755,2114.2,2113.1,7.24435]
[1625172478496,3.54732,2114.1,2113.1,0.15]
[1625172478631,8.68162,2114.1,2113.1,0.15]
[1625172478722,13.69162,2114.1,2113.1,0.15]
[1625172479920,13.69162,2114.1,2113.1,7.02]
[1625172480120,13.69162,2114.1,2113.1,0.15]
[1625172480424,7.09531,2113.6,2113.1,0.15]
[1625172480524,16.70021,2113.6,2113.1,0.15]
[1625172481541,29.96,2113.5,2112.6,6.87]
[1625172481640,0.01392636,2113.4,2112.6,6.87]
[1625172481735,0.16392636,2113.4,2112.6,6.87]
[1625172481841,0.16392636,2113.4,2112.2,6.87914656]
[1625172481842,0.17639706,2113.4,2112.2,6.87914656]
[1625172482038,0.08,2113.3,2112.2,6.87914656]
[1625172482137,0.10028412,2113.3,2112.2,6.87914656]
[1625172482235,0.08,2113.2,2112.2,6.87914656]
[1625172482339,3.56940412,2113.3,2112.2,6.87914656]
[1625172482437,0.01095608,2113.2,2112.2,6.87914656]
[1625172482537,8.58954586,2113.3,2112.2,6.87914656]
[1625172482790,8.58954586,2113.3,2112.2,6.72914656]
[1625172482791,7.09871,2112.8,2112.2,6.72914656]
[1625172482888,7.09871,2112.8,2112.1,0.2]
[1625172483144,7.34810858,2112.8,2112.1,0.2]
[1625172483146,7.35817195,2112.8,2112.1,0.2]
[1625172483293,0.08,2112.7,2112.1,0.2]
[1625172483744,7.09974,2112.4,2112.1,0.2]
[1625172483940,12.10974,2112.4,2112.1,0.2]
[1625172484095,0.08,2112.7,2112.1,0.2]
[1625172484096,5.01,2112.7,2112.1,0.2]
[1625172484291,8.0612,2112.8,2112.1,0.2]
[1625172484394,3.0512,2112.8,2112.1,0.2]
[1625172484491,8.0612,2112.8,2112.1,0.2]
[1625172484592,3.0512,2112.8,2112.1,0.2]
[1625172484746,8.0612,2112.8,2112.1,0.2]
[1625172484841,3.0512,2112.8,2112.1,7.07]
[1625172484941,8.0612,2112.8,2112.1,7.07]
[1625172485040,0.06,2112.7,2112.1,7.07]
[1625172485243,8.0612,2112.8,2112.1,7.07]
[1625172485491,7.09893,2112.6,2112.1,7.07]
[1625172485641,7.09893,2112.6,2111.3,20.481]
[1625172485740,0.0068876,2112.5,2111.2,16.50703654]
[1625172485842,15.0068876,2112.5,2111.2,16.50703654]
[1625172485939,15.01986109,2112.5,2111.2,16.50703654]
[1625172486040,5.02986109,2112.5,2111.2,16.50703654]
[1625172486141,5.02297349,2112.5,2111.2,16.50703654]
[1625172486244,0.01297349,2112.5,2111.2,16.50703654]
[1625172486344,5.01,2112.5,2111.2,16.50703654]
[1625172486442,7.09977,2112.4,2111.3,0.14]
[1625172486596,9.46709,2112.5,2111.3,0.14]
[1625172486694,9.46713,2112.8,2111.3,0.14]
[1625172486789,9.46713,2112.8,2111.3,2.38808331]
[1625172487041,13.01731,2112.8,2111.3,2.24808331]
[1625172487237,12.96731,2112.8,2111.3,2.24808331]
[1625172487391,17.09981,2112.8,2111.2,21.51703654]
[1625172487629,17.24981,2112.8,2111.2,21.51703654]
[1625172487734,9.2925,2112.8,2111.2,21.21703654]
[1625172487829,7.10057,2112.2,2111.2,28.31721654]
[1625172487925,7.10057,2112.2,2111.2,21.21703654]
[1625172488226,15.46207,2112.2,2111.2,16.20703654]
[1625172488577,10.45207,2112.2,2111.2,16.20703654]
[1625172488680,3.3515,2112.2,2111.3,0.06]
[1625172489379,3.3515,2112.2,2111.3,7.15946]
[1625172489527,7.84343,2112.4,2111.3,7.09946]
[1625172489627,12.10963,2112.4,2111.3,7.09946]
[1625172489978,12.10963,2112.4,2111.3,12.10946]
[1625172490275,12.10963,2112.4,2111.2,16.43056454]
[1625172490374,12.10963,2112.4,2111.2,16.20703654]
[1625172490523,15.45713,2112.4,2111.2,16.20703654]
[1625172491224,15.45713,2112.4,2111.3,0.1]
[1625172491327,15.45713,2112.4,2111.2,16.20703654]
[1625172491526,23.45713,2112.4,2111.2,16.20703654]
[1625172491677,16.3575,2112.4,2111.2,16.20703654]
[1625172492235,8.3575,2112.4,2111.2,21.21703654]
[1625172492538,5.01,2112.4,2111.2,21.21703654]
[1625172492737,7.10013,2112.2,2111.2,21.21703654]
[1625172493056,12.11013,2112.2,2111.2,16.20703654]
[1625172493159,7.10013,2112.2,2111.2,16.20703654]
[1625172493256,12.11013,2112.2,2111.2,16.20703654]
[1625172493911,12.11013,2112.2,2111.2,9.89102958]
[1625172494361,7.10013,2112.2,2111.2,14.90102958]
[1625172494461,10.6508,2112.2,2111.2,14.90102958]
[1625172494613,7.10013,2112.2,2111.3,0.06]
[1625172495402,7.10013,2112.2,2111.2,14.90102958]
[1625172496206,12.11013,2112.2,2111.2,9.89102958]
[1625172496808,16.40973,2112.2,2111.2,9.89102958]
[1625172497112,16.40973,2112.2,2111.2,14.90102958]
[1625172497457,16.40973,2112.2,2111.3,0.04]
[1625172497606,11.39973,2112.2,2111.3,0.04]
[1625172497706,11.39973,2112.2,2111.2,14.90102958]
[1625172497806,16.40973,2112.2,2111.2,14.90102958]
[1625172498258,13.60684441,2112.2,2111.2,14.90102958]
[1625172498658,8.59684441,2112.2,2111.2,14.90102958]
[1625172498755,9.30724441,2112.2,2111.2,14.90102958]
[1625172499559,9.30724441,2112.2,2111.2,9.89102958]
[1625172499934,9.30724441,2112.2,2111.2,14.90102958]
[1625172501643,9.30724441,2112.2,2111.2,9.89102958]
[1625172501744,12.39964441,2112.2,2111.1,11.1253]
[1625172501917,0.08808006,2112.1,2111.1,0.2]
[1625172502013,0.08,2112.1,2111.1,0.2]
[1625172502113,0.08,2112.0,2111.1,0.2]
[1625172502263,0.09443619,2112.0,2111.1,0.2]
[1625172502763,7.1026,2111.6,2111.1,0.2]
[1625172502864,11.539,2111.6,2111.1,0.2]
[1625172503014,11.54934714,2111.6,2111.1,0.2]
[1625172503164,11.539,2111.6,2111.1,0.2]
[1625172503414,4.4364,2111.6,2111.1,0.2]
[1625172503669,0.01041155,2112.3,2111.2,30.21]
[1625172503767,3.55021,2112.7,2111.2,30.21]
[1625172503768,11.84694059,2112.6,2111.2,35.19321547]
[1625172503873,0.53717479,2112.9,2111.3,1.4143]
[1625172503969,11.83497,2113.0,2111.4,0.11093932]
[1625172504173,11.83497,2113.0,2111.4,0.58696399]
[1625172504174,11.83497,2113.0,2111.5,0.15]
[1625172504269,11.83223,2113.4,2111.6,0.15768732]
[1625172504471,11.83223,2113.4,2111.7,0.15]
[1625172504570,11.83223,2113.4,2111.8,0.17704793]
[1625172504721,11.83223,2113.4,2111.8,0.32704793]
[1625172504818,11.83223,2113.4,2111.8,2.12404793]
[1625172505072,7.09688,2113.1,2112.2,7.09651]
[1625172505173,0.53717479,2113.2,2112.2,11.64521]
[1625172505272,0.53717479,2113.2,2112.2,16.65521]
[1625172505372,0.53717479,2113.2,2112.3,0.43059629]
[1625172505470,0.53717479,2113.2,2112.2,11.0489]
[1625172505576,0.53717479,2113.2,2112.2,6.0389]
[1625172505925,0.53717479,2113.2,2112.2,8.4389]
[1625172506121,0.04,2113.3,2112.2,8.4389]
[1625172506225,7.09866,2112.8,2112.2,8.4389]
[1625172506324,7.09866,2112.8,2112.2,1.4902]
[1625172506480,0.08,2112.7,2112.2,1.4902]
[1625172506575,0.08,2112.7,2111.8,21.1343]
[1625172506825,22.47488,2112.9,2111.6,4.35]
[1625172507177,22.47488,2112.9,2111.6,0.15]
[1625172507271,9.46573,2112.6,2111.6,0.15]
[1625172508523,9.46573,2112.6,2111.6,0.74246875]
[1625172509082,7.09868,2112.5,2111.7,7.09813]
[1625172509234,7.09868,2112.5,2111.7,11.41993]
[1625172509381,9.46573,2112.6,2111.7,16.42993]
[1625172509484,14.47488,2112.9,2111.7,16.86651307]
[1625172509732,14.47488,2112.9,2111.7,9.3318]
[1625172509881,14.47488,2112.9,2111.7,9.85597462]
[1625172509982,5.01,2112.9,2111.7,9.85597462]
[1625172510083,8.55911,2113.2,2111.8,0.06]
[1625172510434,8.55911,2113.2,2113.0,0.01]
[1625172510584,28.24751,2113.1,2113.0,0.01]
[1625172510684,7.09751,2113.1,2113.0,0.01]
[1625172510783,12.10751,2113.1,2113.0,0.01]
[1625172511175,12.14751,2113.1,2113.0,0.01]
[1625172512180,12.10751,2113.1,2113.0,0.01]
[1625172514158,4.08564479,2113.6,2113.0,4.9953]
[1625172514257,7.63256479,2113.6,2113.0,4.9953]
[1625172514605,7.63256479,2113.6,2113.0,4.9853]
[1625172514711,0.53717479,2113.6,2113.0,4.9853]
[1625172514807,0.53717479,2113.6,2113.0,9.9953]
[1625172514906,0.53717479,2113.6,2113.1,0.1]
[1625172515106,10.65517479,2114.2,2113.1,0.53770759]
[1625172515204,10.65517479,2114.2,2113.2,0.03499889]
[1625172515432,0.53717479,2114.2,2113.2,7.39797889]
[1625172515579,0.53717479,2114.2,2113.2,14.5600693]
[1625172515681,0.53717479,2114.2,2113.2,7.4670893]
[1625172515779,0.53717479,2114.2,2113.3,0.04]
[1625172516130,7.09317,2114.4,2113.3,0.08934623]
[1625172516229,7.09317,2114.4,2113.3,0.04934623]
[1625172516830,0.53717479,2114.7,2113.3,1.43014623]
[1625172516831,7.0919,2114.6,2113.3,1.43014623]
[1625172517029,7.0919,2114.6,2113.4,0.5091378]
[1625172517134,7.0919,2114.6,2113.5,0.07611121]
[1625172517229,7.0919,2114.6,2113.5,4.65051121]
[1625172517332,7.0919,2114.6,2113.5,9.66051121]
[1625172517678,7.0919,2114.6,2113.5,15.97757056]